Cogmind - Beta 15 @@@ ROGUE MODE // 2025.05.25 @ 17:37:42 Player: Niko Result: Destroyed by WA-UQD(p) with EM Pulse Gun Performance ------------- Evolutions (0) 0 Regions Visited (4) 800 Robots Destroyed (17) 85 Value Destroyed (427) 427 Prototype IDs (0) 0 Alien Tech Used (0) 0 Bonus (800) 800 TOTAL SCORE: 2112 Bonus ------- Registered with UFD 300 Met Optimus in HQ 500 Cogmind --------- Core Integrity 0/250 Matter 290/300 Energy 147/160 System Corruption 1% Temperature Cool (0) Movement Core (450) Ox8 Location -7/Scraptown Parts ------- > --- POWER (1) -------- Light Nuclear Core > --- PROPULSION (2) --- (None) > --- UTILITY (2) ------ Large Storage Unit ID Mask > --- WEAPON (2) ------- (None) > --- INVENTORY (15) --- Light Deuterium Engine Fission Core IFF Parser Shock Absorption System Scrapoid Pod Light Assault Rifle Heavy Flak Cannon Grenade Launcher CPS Tube (2) CPS Tube (2) Peak State ------------ > --- POWER ------------ Light Nuclear Core > --- PROPULSION ------- Aluminum Leg Aluminum Leg > --- UTILITY ---------- Large Storage Unit Drone Bay > --- WEAPON ----------- Battle Rifle Datajack > --- INVENTORY -------- Light Deuterium Engine Fission Core Titanium Leg IFF Parser ID Mask Shock Absorption System Scrapoid Pod Assault Rifle Light Assault Rifle Heavy Flak Cannon Grenade Launcher CPS Tube CPS Tube [Rating: 19] Favorites ----------- Power Light Nuclear Core Engine Light Ion Engine Power Core Light Nuclear Core Propulsion Aluminum Leg Leg Aluminum Leg Utility Large Storage Unit Device Drone Bay Storage Large Storage Unit Processor ID Mask Weapon Datajack Ballistic Gun Light Assault Rifle Special Weapon Mining Laser Special Melee Weapon Datajack Build | -11 -10 -10 -10 -7 ------- Run | Yrd Mat Min Sub Scr Slots Evolved . | . . . . . Power . | . . . . . Propulsion . | . . . . . Utility . | . . . . . Weapon . | . . . . . Parts Attached 16 | 6 2 . 1 7 Power 2 | 1 . . 1 . Engine 1 | 1 . . . . Core 1 | . . . 1 . Reactor . | . . . . . Propulsion 4 | 2 . . . 2 Treads . | . . . . . Leg 4 | 2 . . . 2 Wheel . | . . . . . Hover . | . . . . . Flight . | . . . . . Utility 5 | 1 1 . . 3 Device 2 | . 1 . . 1 Storage 2 | 1 . . . 1 Processor 1 | . . . . 1 Hackware . | . . . . . Protection . | . . . . . Artifact . | . . . . . Weapon 5 | 2 1 . . 2 Energy Gun . | . . . . . Energy Cannon . | . . . . . Ballistic Gun 3 | 2 . . . 1 Ballistic Cannon . | . . . . . Launcher . | . . . . . Special Weapon 1 | . 1 . . . Impact Weapon . | . . . . . Slashing Weapon . | . . . . . Piercing Weapon . | . . . . . Special Melee Weapon 1 | . . . . 1 Unidentified Prototypes . | . . . . . Parts Lost 9 | . . . 3 6 Power 1 | . . . 1 . Propulsion 3 | . . . 1 2 Utility 2 | . . . 1 1 Weapon 3 | . . . . 3 Highest Loss Streak 5 | . . . 3 5 To Critical Strikes . | . . . . . Average Backups 9 | 1 3 4 2 12 Power 1 | . . 1 . 1 Propulsion . | . . . . . Utility 1 | . . . . 2 Weapon 4 | . 2 3 2 5 Tool/Special . | . . . . . Unused Backups 13 | 2 . . . 11 Power 2 | . . . . 2 Propulsion 2 | 2 . . . . Utility 3 | . . . . 3 Weapon 3 | . . . . 3 Tool/Special 3 | . . . . 3 Average Slot Usage (%) 75 | . 87 100 75 70 Engine 3 | . 14 14 4 . Core 10 | . . . 9 14 Leg 23 | . 28 28 18 22 Device 5 | . 2 14 2 5 Storage 14 | . 14 14 14 14 Ballistic Gun 8 | . 21 14 26 5 Special Weapon 2 | . 6 14 1 . Special Melee Weapon 6 | . . . . 8 Peak Build Rating 19 | 6 7 7 7 19 Average Rating 10 | 3 6 7 6 12 On Entrance 5 | . 6 7 7 7 Naked Turns . | . . . . . Heaviest Build 34 | 11 12 12 13 34 Greatest Support 20 | 20 20 20 20 20 Greatest Overweight (x) 8 | . . . 1 8 Average Overweight (x) . | . . . . 1 Largest Inventory Capacity 15 | 8 8 8 8 15 Average Capacity 12 | 6 8 8 8 14 Most Carried 15 | 4 5 4 4 15 Average Carried 10 | 1 3 4 2 13 Final Capacity 15 | 8 8 8 8 15 Final Carried 11 | 1 4 4 3 11 Class Distribution -------------------- 100% | Mutant Dominant Class ---------------- Mutant | -10/Materials Mutant | -10/Mines Mutant | -10/Subcaves Mutant | -7/Scraptown Resources | -11 -10 -10 -10 -7 ----------- Run | Yrd Mat Min Sub Scr Matter Collected 631 | 208 126 . 16 281 Remotely . | . . . . . Salvage Created 574 | . 247 . 58 269 Parts 36 | . 16 . 8 12 Haulers Intercepted . | . . . . . Recyclers Shooed . | . . . . . Parts Field Recycled . | . . . . . Retrieved Matter . | . . . . . Parts Self-Destructed 8 | . . . 8 . Prevented . | . . . . . Kills | -11 -10 -10 -10 -7 ------- Run | Yrd Mat Min Sub Scr Combat Hostiles Destroyed 14 | . 6 . 4 4 Guns 14 | . 6 . 4 4 Classes Destroyed 6 | . 4 . . 2 Builder 2 | . 2 . . . Operator 1 | . 1 . . . Swarmer 6 | . 2 . 4 . Grunt 4 | . 4 . . . Ranger 1 | . . . . 1 Scrapper 3 | . . . . 3 Best Kill Streak 4 | . 3 . 4 1 Combat Bots Only 4 | . 2 . 4 1 Max Kills in Single Turn 1 | . 1 . 1 1 Gunslinging . | . . . . . Exploded . | . . . . . Melee . | . . . . . Uniques/NPCs Destroyed . | . . . . . Combat | -11 -10 -10 -10 -7 -------- Run | Yrd Mat Min Sub Scr Hostile Shots Fired 141 | . 30 . 36 75 Missed 30 | . 11 . 8 11 Hits 111 | . 19 . 28 64 Projectile 111 | . 19 . 28 64 Critical Strikes 2 | . . . 1 1 Damage Taken 1189 | . 194 . 232 763 Core 251 | . 54 . 41 156 Absorbed by Shields . | . . . . . Regen/Repaired (Parts) 340 | . . . . 340 Core Remaining (%) 100 | 100 . . . . Volleys Fired 95 | . 33 10 13 39 Largest 2 | . 2 1 2 2 Hottest 120 | . 120 100 40 45 Shots Fired 130 | . 55 10 24 41 Gun 115 | . 49 1 24 41 Cannon . | . . . . . Launcher . | . . . . . Special 15 | . 6 9 . . Kinetic 115 | . 49 1 24 41 Thermal 15 | . 6 9 . . Explosive . | . . . . . Electromagnetic . | . . . . . Robot Hit Streak 11 | . 11 . 5 11 Robot Miss Streak 4 | . 4 . 4 2 Penetration Max . | . . . . . Secondary Targets 4 | . 1 . 3 . Max Gunslinging Chain 1 | . 1 . 1 . Shots Hit Robots 81 | . 36 . 13 32 Core Hits 28 | . 16 . 5 7 Critical Kills . | . . . . . Critical Parts Destroyed 1 | . 1 . . . Critical Strikes 1 | . 1 . . . Destroy 1 | . 1 . . . Melee Attacks 5 | . . . . 5 Impact . | . . . . . Slashing . | . . . . . Piercing . | . . . . . Sneak Attacks . | . . . . . Combat Hostiles . | . . . . . Follow-up Attacks . | . . . . . Damage Inflicted 850 | . 387 . 148 315 Guns 850 | . 387 . 148 315 Cannons . | . . . . . Explosions . | . . . . . Melee . | . . . . . Ramming . | . . . . . Kinetic 850 | . 387 . 148 315 Thermal . | . . . . . Explosive . | . . . . . Electromagnetic . | . . . . . Impact . | . . . . . Slashing . | . . . . . Piercing . | . . . . . Highest Corruption 1 | . . . . 1 Average Corruption 1 | . . . . 1 Corruption Purged . | . . . . . Corruption Blocked . | . . . . . Overload Shots . | . . . . . Overflow Damage . | . . . . . Projectiles . | . . . . . Explosions . | . . . . . Melee . | . . . . . Knockbacks . | . . . . . Impact . | . . . . . Kinetic . | . . . . . Secondary . | . . . . . Self-Inflicted Damage . | . . . . . Shots . | . . . . . Rammed . | . . . . . Targets Rammed . | . . . . . Kicked . | . . . . . Crushed . | . . . . . Highest Temperature 48 | . 40 48 . 33 Average Temperature 15 | . 12 27 . 9 Received Heat Transfer 298 | . 81 . . 217 Siege Activations . | . . . . . Martial Activations . | . . . . . Shielding Activations . | . . . . . Robots Disrupted . | . . . . . Combat Hostiles . | . . . . . Robots Corrupted . | . . . . . Combat Hostiles . | . . . . . Parts Fried . | . . . . . Impact Corruptions . | . . . . . Robots Melted . | . . . . . Combat Hostiles . | . . . . . Parts Melted 1 | . . . . 1 Heat Transferred . | . . . . . Parts Sabotaged . | . . . . . Parts Stolen . | . . . . . Parts Stripped . | . . . . . Power Chain Reactions . | . . . . . Alert | -11 -10 -10 -10 -7 ------- Run | Yrd Mat Min Sub Scr Maximum Alert Level . | . . . . . Low Security (%) 100 | 100 100 100 . . Level 1 . | . . . . . Level 2 . | . . . . . Level 3 . | . . . . . Level 4 . | . . . . . Level 5 . | . . . . . High Security . | . . . . . Max Security . | . . . . . Peak Influence 71 | . 71 13 . . Initial 13 | . . 13 . . Average 16 | . 25 1 . . Influence Increases 325 | . 244 1 80 . Destroy 0b10 Robot/C 200 | . 120 . 80 . Destroy 0b10 Robot/NC 15 | . 15 . . . Destroy Leader 30 | . 30 . . . Successful Hack 14 | . 14 . . . Destroy Structure 6 | . 5 1 . . Lose Combat Pursuer 60 | . 60 . . . Influence Decreases 325 | . 210 35 80 . Entered New Map 21 | . . 21 . . Time Decay 264 | . 200 14 50 . Lost Part 30 | . . . 30 . Purge Threat 10 | . 10 . . . Squads Dispatched 2 | . 2 . . . Investigation 1 | . 1 . . . Extermination . | . . . . . Reinforcement 1 | . 1 . . . Assault . | . . . . . Garrison . | . . . . . Intercept . | . . . . . Searches Triggered . | . . . . . Construction Impeded . | . . . . . Haulers Reinforced . | . . . . . Active Scanning Responses . | . . . . . Cargo Convoy Interrupts . | . . . . . Stealth | -11 -10 -10 -10 -7 --------- Run | Yrd Mat Min Sub Scr Distress Signals 1 | . 1 . . . Communications Jammed . | . . . . . Distress Signals . | . . . . . Times Spotted 38 | . 15 . 4 19 Peak Tracking Total 7 | . 3 . 4 7 Tactical Retreats 4 | . 3 . . 1 ID Masks Used 1 | . . . . 1 IFF Responses 9 | . . . . 9 Traps | -11 -10 -10 -10 -7 ------- Run | Yrd Mat Min Sub Scr Traps Triggered 1 | . 1 . . . Indirectly . | . . . . . Trap Hack Attempts . | . . . . . Triggered . | . . . . . Disarmed . | . . . . . Reprogrammed . | . . . . . Reused . | . . . . . Traps Extracted . | . . . . . Installed . | . . . . . Triggered . | . . . . . Machines | -11 -10 -10 -10 -7 ---------- Run | Yrd Mat Min Sub Scr Machines Disabled 1 | . 1 . . . Max in Single Turn 1 | . 1 . . . Machines Repaired . | . . . . . Machines Dismantled . | . . . . . Machines Sabotaged . | . . . . . Overloaded Fab Kills . | . . . . . Hacking | -11 -10 -10 -10 -7 --------- Run | Yrd Mat Min Sub Scr Machines Accessed 10 | . 5 . . 5 Terminals 5 | . 5 . . . Fabricators . | . . . . . Repair Stations . | . . . . . Recycling Units . | . . . . . Scanalyzers . | . . . . . Garrison Access . | . . . . . Total Hacks 55 | . 18 . . 37 Successful 47 | . 10 . . 37 Failed 8 | . 8 . . . Catastrophic . | . . . . . Database Lockouts . | . . . . . Manual 12 | . 12 . . . Terminals 18 | . 18 . . . Fabricators . | . . . . . Repair Stations . | . . . . . Recycling Units . | . . . . . Scanalyzers . | . . . . . Garrison Access . | . . . . . Terminal Hacks 40 | . 3 . . 37 Record 37 | . . . . 37 Alert Level 1 | . 1 . . . Unreport Threat 1 | . 1 . . . Hauler Manifests 1 | . 1 . . . Fabricator Hacks . | . . . . . Repair Station Hacks . | . . . . . Recycling Unit Hacks . | . . . . . Scanalyzer . | . . . . . Garrison Access Hacks . | . . . . . Unauthorized Hacks 7 | . 7 . . . Terminals 7 | . 7 . . . Assimilate 1 | . 1 . . . Botnet 5 | . 5 . . . Operators 1 | . 1 . . . Fabricators . | . . . . . Repair Stations . | . . . . . Recycling Units . | . . . . . Scanalyzers . | . . . . . Garrison Access . | . . . . . Data Cores Recovered . | . . . . . Used . | . . . . . Hacking Detections 5 | . 5 . . . Full Trace Events . | . . . . . Feedback Events . | . . . . . Feedback Blocked . | . . . . . Robot Schematics Acquired . | . . . . . Robots Built . | . . . . . Authchips . | . . . . . Time . | . . . . . Total Robot Build Rating . | . . . . . Part Schematics Acquired . | . . . . . Parts Built . | . . . . . Authchips . | . . . . . Time . | . . . . . Total Part Build Rating . | . . . . . Parts Repaired . | . . . . . Time . | . . . . . Parts Recycled . | . . . . . Recycled Matter . | . . . . . Retrieved Matter . | . . . . . Retrieved Components . | . . . . . Parts Scanalyzed . | . . . . . Part Schematics Acquired . | . . . . . Parts Damaged . | . . . . . Bothacking | -11 -10 -10 -10 -7 ------------ Run | Yrd Mat Min Sub Scr Used RIF Installer . | . . . . . Robots Hacked 1 | . . . . 1 Non-combat . | . . . . . Combat 1 | . . . . 1 Robot Hacks Applied 1 | . . . . 1 parse_system 1 | . . . . 1 Relay Couplers Released . | . . . . . Fabnet Peak Effective % . | . . . . . Robots Rewired . | . . . . . Allies Hacked . | . . . . . Hacks Repelled . | . . . . . Allies | -11 -10 -10 -10 -7 -------- Run | Yrd Mat Min Sub Scr Total Allies 1 | . . . . 1 Largest Group 1 | . . . . 1 Highest-Rated Group 42 | . . . . 42 Highest-Rated Ally 42 | . . . . 42 Total Orders 1 | . . . . 1 GUARD 1 | . . . . 1 Ally Attacks 6 | . . . . 6 Total Damage 94 | . . . . 94 Kills . | . . . . . Allies Corrupted . | . . . . . Allies Melted 2 | . . . . 2 Intel | -11 -10 -10 -10 -7 ------- Run | Yrd Mat Min Sub Scr Active Infowar (turns) 337 | . 74 246 16 1 Terrain 336 | . 74 246 16 . ID Mask 1 | . . . . 1 Robot Analysis Total . | . . . . . Derelict Logs Recovered . | . . . . . Drone Launches 2 | . . . . 2 Drone Recoveries 1 | . . . . 1 Exploration | -11 -10 -10 -10 -7 ------------- Run | Yrd Mat Min Sub Scr Turns Passed 3649 | 64 538 246 136 2665 Spaces Moved 1735 | 45 321 39 54 1276 Core 8 | 7 . . . 1 Treads . | . . . . . Legs 1727 | 38 321 39 54 1275 Wheels . | . . . . . Hover . | . . . . . Flight . | . . . . . Fastest Speed 50 | 50 120 120 120 120 Average Speed 179 | 109 120 120 183 199 Slowest Speed 450 | 120 120 120 190 450 Overloaded Moves . | . . . . . Propulsion Burnouts . | . . . . . Robots Hopped . | . . . . . Potential Cave-ins 3 | . . 3 . . Cave-ins Triggered . | . . . . . Exploration Rate (%) 32 | 4 63 7 8 82 Regions Visited 4 Branch Regions 3 Pre-discovered Areas . | . . . . . Known Exits Taken . | . . . . . Unknown Exits Taken 4 | 1 1 1 1 . Scrap Searched 6 | . . . . 6 Spaces Dug 6 | . . 6 . . Terrain Destroyed 11 | . 5 6 . . Melee . | . . . . . Projectile 11 | . 5 6 . . AOE . | . . . . . Terrain Rammed . | . . . . . Walls Destroyed . | . . . . . Machines Disabled . | . . . . . Actions | -11 -10 -10 -10 -7 --------- Run | Yrd Mat Min Sub Scr Total 2117 | 61 410 210 70 1366 Wait 228 | . 50 162 . 16 Move 1731 | 44 320 38 53 1276 Hop . | . . . . . Pick Up 28 | 9 4 . 1 14 Fast Attach 2 | . . . . 2 Attach 17 | 6 2 . 2 7 Detach 3 | . 1 . . 2 Swap . | . . . . . Drop 8 | 2 . . 1 5 Fire 95 | . 33 10 13 39 Melee 5 | . . . . 5 Ram . | . . . . . Kick . | . . . . . Crush . | . . . . . Escape Stasis . | . . . . . Rewire . | . . . . . Trap . | . . . . . Miscellaneous . | . . . . . Route ------- -11/Scrapyard -10/Materials (discovered 2 exits: [*Mat] / [*Min]) -10/Mines -10/Subcaves -7/Scraptown (discovered 2 exits: [*Fac x2]) History --------- Turn | Location | Event 20 | -11/Scrapyard | Discovered new exit (range 16) 65 | -11/Scrapyard | Entered Materials 224 | -10/Materials | Discovered new exit (range 16) 313 | -10/Materials | Build established: Mutant 456 | -10/Materials | Discovered new exit (range 7) 603 | -10/Materials | Entered Mines 628 | -10/Mines | Met a Derelict bent on vengeance 782 | -10/Mines | Discovered new exit (range 14) 849 | -10/Mines | Entered Subcaves 850 | -10/Subcaves | Approached by a straggling Scientist 919 | -10/Subcaves | Lost 3 parts (1p1n1u) 926 | -10/Subcaves | Shifting Twisted Machinery released Battle Rifle 936 | -10/Subcaves | Shifting Twisted Machinery released Ripper 979 | -10/Subcaves | Scientist uncovered a shortcut to Scraptown 985 | -10/Subcaves | Entered Scraptown 1389 | -7/Scraptown | Heard Great Nut preacher, LISTEN AND RECITE! 1430 | -7/Scraptown | Visited Assassins FH 1493 | -7/Scraptown | Visited Spacefarers 2153 | -7/Scraptown | Discovered new exit (range 7) 2349 | -7/Scraptown | Visited The Evicted 2410 | -7/Scraptown | Visited CR-KLE's Repair Center 2423 | -7/Scraptown | CR-KLE repaired 5 parts 2509 | -7/Scraptown | Visited UFD Registry 2509 | -7/Scraptown | Registered with UFD as "Scrapsourcer" 2589 | -7/Scraptown | Visited Scrapoid Pod Storage 2600 | -7/Scraptown | Found Scrapoid Pod 2641 | -7/Scraptown | Visited Botcube Research 2655 | -7/Scraptown | Found Botcube 2701 | -7/Scraptown | Visited Scrap Suit Storage 2884 | -7/Scraptown | Discovered new exit (range 5) 2960 | -7/Scraptown | Visited Chapter 10 3051 | -7/Scraptown | Visited Observation Area 3169 | -7/Scraptown | Met Optimus 3169 | -7/Scraptown | Accepted into 0bPrime 3288 | -7/Scraptown | Visited Curators Association 3341 | -7/Scraptown | Civil war broke out across Scraptown 3392 | -7/Scraptown | Botcube activated 3404 | -7/Scraptown | Botcube completed mutation into legged form, armed with 1 gun. 3408 | -7/Scraptown | Visited DA-N13 Charitable Foundation 3416 | -7/Scraptown | Found DCF Scrap (27 items) 3465 | -7/Scraptown | Lost 5 allies 3512 | -7/Scraptown | Found ID Mask 3569 | -7/Scraptown | Lost 6 allies 3578 | -7/Scraptown | Core integrity fell below 50% 3622 | -7/Scraptown | Core integrity fell below 20% 3649 | -7/Scraptown | ID Mask engaged 3650 | -7/Scraptown | Destroyed by WA-UQD(p) with EM Pulse Gun Last Messages --------------- Penetrated by Bolt. Aluminum Leg destroyed. Penetrated by Bolt. Destroyed Airjet. Penetrated by Bolt. Aluminum Leg destroyed. Penetrated by Bolt. Datajack destroyed. 94-8M2(h) destroyed. Acquired 80 matter. Bolt penetrates Wall. Acquired 6 matter. Bolt penetrates Wall. Battle Rifle destroyed. Bolt penetrates Wall. Bolt penetrates B1-E7C(E). Dropped Titanium Leg. Dropped Assault Rifle. ID Mask engaged. Bolt penetrates Wall. Map ----- +----------------------------------------------------+ | "##"""##""|##"""#??## ##????# < #???????????????? | | ##""!##""|##!!"#### ###### ##??????????????? | | #??????????????? | | * #??????????????? | | #################### ###########??????????????? | | ???????????????????## ##????????????????????????? | | ????????????????????# #?????????????????????????? | | ?????????????######## ############??????????????? | | ?????????????" !"## #""""""""""#??????????????? | | ?????????????#" "## ### " #??????????????? | | ??????????####X ### ## ""#??????????????? | | ??????????#"! !"## ## ""#??????????????? | | #####"###?#"! !"##=!## """"#??????????????? | | """ ""?#" "##!=## " ""#??????????????? | | "" ! ""##"! !"##*[## """"#??????????????? | | " " ##"! "##[[## != ""#??????????????? | | "" "### ###p%%##=% "#??????????????? | | "## ##=h#[***! #??????????????? | | ### ########### #####%!##%#########??????????????? | | ### ########### #####=!%#!###############????????? | | """ """"""""""" """"=!%&!%"## """"""""""#????????? | | =*[*=!*[=!=## " "#????????? | | ==[=%[%=!"## """""" "#????????? | | ![!!=![%="## "????" "#????????? | | !%= [*"## "????" "#????????? | | [*=[=!@[ "????" "#????????? | | """""""""""""""""" ""==%[ "## """""" "#????????? | | """""""""""""""""" ""!*!*[=## "#????????? | | # ################"%=*[=!"## """""""""#????????? | | ##????????#""=/=%*"##############????????? | | X"#????????#"%![!=!"#?????????????????????? | | " "" ##????????#""*!%%= #???"??"??????????????? | | "" X"#??????###"*!%[!="#?? " "#?????????????? | | " #########!#"=%!![%"## ""#?????????????? | | "" [[%=!%![==! "#?????????????? | | "" =!%=[%!*=["## X"#?????????????? | | " #########*#"[!%= "#?? " "#?????????????? | | "" ""#??????###"!!!=! "#???""""#?????????????? | | " "" ##????????#"%j*=! "#????#????????????????? | | X"#????????#""!%= "#?????????????????????? | | ##????????#"" != "#?????????????????????? | | # ################"" "####?###??##??????????? | | """""?"""""""" """""" "##"###"###"#??????????? | | """""""""""" "" """ "&" "$" #??????????? | | !%* =*%"## """ """ ###????????? | | [!! =*%"## "#????????? | | = !!!="## [ ""#?????????? | | = !=%=## "]#?????????? | | % %%=% !=%[[[ # ""##????????? | | """" """"""""""![" """*[ ## "#????????? | +----------------------------------------------------+ Best States ------------- Heat Dissipation 25 Energy Generation 14 Energy Capacity 160 Matter Stores 300 Matter Capacity 300 Sight Range 16 Terrain Scan Range 14 Terrain Scan Density 10 Evasion (%) 55 Item Schematics ----------------- None Robot Schematics ------------------ None Fabricated ------------ Nothing Repaired ---------- Nothing Alien Tech Used ----------------- None Achievements -------------- None Challenges ------------ None Game ------ Seed DeliveryDecoyTelecube Manual? 0 Play Time 00:34:22 Cumulative 27.7 hours Start 2025.05.25 @ 17:02:55 End 2025.05.25 @ 17:37:42 Sessions 1 Manual Loads 0 Difficulty Rogue Special Mode None Game No. 52 Rogue 52 Adventurer 0 Explorer 0 Win Type - Total 0 Types 0/0/0/0/0/0/0/0/0/0 Lore% 19 Gallery% 25 Achievement% 26 Wizard Run 0 Options --------- Layout 1 ASCII 0 Keyboard 0 Movement Mouse Keybinds 0 Fullscreen 1 Font 24/Smallcaps Map View 50x35 Zoom Use 0% Tactical HUD 0 Map Filters NONE Filters NONE Steam 1 RUN: b8e3168f-b613-4447-9c2e-66d738ebc3a9